bitfinex/quotes_SOLUSD_20240827
["timestamp","ask_amount","ask_price","bid_price","bid_amount"]
[1724729402913,2.1e-05,158.41,158.4,85.78459911]
[1724729404111,2.1e-05,158.41,158.4,82.43084333]
[1724729404309,2.1e-05,158.41,158.4,72.57798041]
[1724729404517,2.1e-05,158.41,158.4,71.3131]
[1724729405704,2.1e-05,158.41,158.4,6.3131]
[1724729407207,2.1e-05,158.41,158.4,71.3131]
[1724729411532,2.1e-05,158.41,158.4,26.3131]
[1724729411826,2.1e-05,158.41,158.4,27.57515118]
[1724729412816,2.1e-05,158.41,158.4,72.57515118]
[1724729413407,2.1e-05,158.41,158.4,71.3131]
[1724729418961,2.1e-05,158.41,158.4,72.57526256]
[1724729419166,2.1e-05,158.41,158.4,80.40327563]
[1724729419454,15.7982,158.52,158.49,15.7737]
[1724729419629,10.0,158.53,158.52,22.0791]
[1724729419937,10.0,158.53,158.52,33.19329688]
[1724729420314,10.0,158.53,158.52,53.19329688]
[1724729420814,10.0,158.53,158.52,98.19329688]
[1724729421634,10.0,158.53,158.52,87.0791]
[1724729422011,10.0,158.53,158.52,88.34039897]
[1724729423233,10.0,158.53,158.52,98.19326189]
[1724729423439,10.0,158.53,158.52,96.93196292]
[1724729425643,10.0,158.53,158.52,87.0791]
[1724729425830,10.0,158.53,158.52,96.93196292]
[1724729427941,15.7982,158.61,158.56,22.0736]
[1724729428142,15.7982,158.61,158.56,67.0736]
[1724729441238,9.85286292,158.59,158.56,15.7669]
[1724729441759,10.45692155,158.59,158.56,15.7669]
[1724729443133,9.85286292,158.59,158.56,22.0736]
[1724729443346,9.85286292,158.6,158.56,22.0736]
[1724729443550,15.7982,158.61,158.56,22.0736]
[1724729446259,9.85286292,158.6,158.56,22.0736]
[1724729447150,9.85286292,158.58,158.55,6.3071]
[1724729447354,9.85286292,158.56,158.53,15.7696]
[1724729447657,16.1637,158.55,158.53,15.7696]
[1724729447835,16.1637,158.55,158.53,22.0771]
[1724729448251,16.1637,158.55,158.53,22.0775]
[1724729448566,16.76775863,158.55,158.53,15.7696]
[1724729448941,16.1637,158.55,158.53,15.7696]
[1724729449239,16.1637,158.55,158.53,22.0774]
[1724729450955,9.85286292,158.54,158.51,6.3083]
[1724729451155,0.60405863,158.53,158.51,6.3083]
[1724729451361,0.60405863,158.53,158.5,6.309]
[1724729453347,9.85286292,158.54,158.5,6.309]
[1724729453678,9.85286292,158.52,158.49,22.0825]
[1724729453967,9.85286292,158.52,158.45,47.3325]
[1724729454170,9.85286292,158.52,158.49,6.3095]
[1724729458770,9.85286292,158.52,158.48,6.3099]
[1724729460053,9.85286292,158.52,158.47,15.7749]
[1724729460054,9.85286292,158.5,158.47,15.7749]
[1724729460261,16.4695,158.49,158.47,22.0851]
[1724729460654,9.85286292,158.48,158.47,15.7749]
[1724729461054,9.85286292,158.48,158.47,22.0852]
[1724729462780,16.4695,158.49,158.47,22.0852]
[1724729477391,16.4695,158.49,158.48,6.3099]
[1724729477590,9.85286292,158.51,158.48,6.3099]
[1724729477770,9.85286292,158.51,158.48,1.26189509]
[1724729477974,16.1932,158.53,158.49,17.03487978]
[1724729478180,6.0276,158.55,158.51,15.7709]
[1724729478380,6.0276,158.55,158.52,6.3083]
[1724729480397,9.85286292,158.56,158.53,6.3079]
[1724729481903,9.85286292,158.56,158.51,22.0792]
[1724729482197,16.15956292,158.56,158.51,22.0792]
[1724729482896,9.85286292,158.54,158.51,22.0792]
[1724729483085,9.85286292,158.52,158.48,60.7746]
[1724729483801,9.85286292,158.52,158.49,6.3095]
[1724729484175,9.85286292,158.5,158.48,22.0845]
[1724729485918,10.45692155,158.52,158.48,22.0845]
[1724729486204,9.85286292,158.52,158.48,22.0845]
[1724729486588,9.85286292,158.53,158.48,15.7746]
[1724729486788,9.85286292,158.53,158.5,15.7719]
[1724729486994,9.85286292,158.55,158.5,17.03351245]
[1724729487596,9.85286292,158.55,158.52,6.3083]
[1724729496607,9.85286292,158.55,158.51,6.3087]
[1724729497399,9.85286292,158.55,158.5,17.03353486]
[1724729497790,17.015821,158.57,158.5,17.03353486]
[1724729497791,26.86868392,158.57,158.5,23.34233486]
[1724729497996,26.86868392,158.57,158.51,46.58029936]
[1724729498216,26.86868392,158.57,158.52,1.26147554]
[1724729503199,6.3077,158.54,158.52,1.26147554]
[1724729503400,0.60405863,158.53,158.48,3.35123671]
[1724729503606,6.60017054,158.55,158.44,5.91750644]
[1724729503911,9.85286292,158.53,158.45,1.58062908]
[1724729504107,9.85286292,158.53,158.47,6.3103]
[1724729504415,0.60405863,158.52,158.46,6.3106]
[1724729504623,0.60405863,158.52,158.45,15.777]
[1724729504624,9.85286292,158.49,158.45,15.777]
[1724729506698,16.16326292,158.47,158.39,14.28778697]
[1724729506904,9.85286292,158.45,158.4,4.93468925]
[1724729507211,9.85286292,158.45,158.41,1.58084354]
[1724729507411,9.85286292,158.45,158.42,1.58084354]
[1724729507610,9.85286292,158.45,158.4,3.35384479]
[1724729507814,9.85286292,158.45,158.41,1.58108983]
[1724729508014,9.85286292,158.45,158.42,1.58108983]
[1724729508214,9.85286292,158.45,158.41,45.0]
[1724729508412,9.85286292,158.45,158.4,45.0]
[1724729508615,9.85286292,158.45,158.41,1.58102386]
[1724729508810,9.85286292,158.45,158.42,1.58102386]
[1724729509023,9.85286292,158.45,158.4,45.0]
[1724729509225,9.85286292,158.45,158.4,51.3129]
[1724729509412,9.85286292,158.45,158.41,1.58102419]
[1724729509610,9.85286292,158.45,158.42,1.58102419]
[1724729509829,9.85286292,158.45,158.4,51.3129]
[1724729510133,9.85286292,158.45,158.41,1.58102419]
[1724729510312,9.85286292,158.45,158.42,1.58102419]
[1724729510504,9.85286292,158.45,158.4,51.3129]
[1724729510703,9.85286292,158.45,158.41,1.58102353]
[1724729511022,9.85286292,158.45,158.4,51.3129]
[1724729511224,9.85286292,158.45,158.41,1.58105668]
[1724729511528,9.85286292,158.45,158.4,51.3129]
[1724729511732,9.85286292,158.45,158.41,1.58105564]
[1724729511917,9.85286292,158.45,158.4,51.3129]
[1724729512114,9.85286292,158.45,158.41,1.58105701]
[1724729512553,9.85286292,158.45,158.4,51.3129]
[1724729513212,9.85286292,158.45,158.41,1.58105701]
[1724729513412,9.85286292,158.45,158.4,51.3129]
[1724729513615,9.85286292,158.45,158.41,1.58105701]
[1724729513918,9.85286292,158.45,158.4,51.3129]
[1724729520529,0.60405863,158.47,158.41,6.3127]
[1724729520718,12.90602443,158.49,158.35,16.32326292]
[1724729520719,6.59622443,158.49,158.42,46.26215102]
[1724729521032,25.26566292,158.51,158.43,17.04168989]
[1724729521340,15.4128,158.51,158.45,25.62996292]
[1724729521518,6.59497584,158.53,158.49,6.3094]
[1724729521716,15.7323,158.55,158.5,1.2616187]
[1724729522327,15.7323,158.55,158.5,46.2616187]
[1724729523120,15.7323,158.55,158.5,45.0]
[1724729526337,7.41782892,158.57,158.51,1.2616176]
[1724729526538,7.41782892,158.57,158.5,60.7719]
[1724729526539,0.822621,158.57,158.52,1.26132006]
[1724729527438,0.822621,158.57,158.52,51.3082]
[1724729527639,0.822621,158.57,158.52,6.3082]
[1724729527932,0.822621,158.57,158.53,45.0]
[1724729529631,0.822621,158.57,158.54,1.26134755]
[1724729530025,0.822621,158.57,158.54,7.56884755]
[1724729530228,0.822621,158.57,158.55,1.26127323]
[1724729534124,0.822621,158.57,158.56,23.33473015]
[1724729534325,0.822621,158.57,158.56,68.33473015]
[1724729537425,0.822621,158.57,158.56,67.0736]
[1724729539424,0.822621,158.57,158.56,68.33445115]
[1724729542226,0.822621,158.57,158.56,88.33445115]
[1724729543648,0.822621,158.57,158.56,87.0736]
[1724729544749,0.822621,158.57,158.56,95.0144]
[1724729545543,15.2187,158.67,158.64,6.3032]
[1724729545735,15.2187,158.67,158.65,1.26043773]
[1724729546463,0.60405863,158.66,158.6,15.7627]
[1724729546639,9.85286292,158.65,158.6,15.7627]
[1724729546972,25.07156292,158.67,158.61,45.0]
[1724729548054,25.07156292,158.67,158.61,51.3045]
[1724729548530,15.2187,158.67,158.61,51.3045]
[1724729548958,15.2187,158.67,158.62,7.56482956]
[1724729549160,15.2187,158.67,158.63,45.0]
[1724729551366,15.2187,158.67,158.62,6.3042]
[1724729551941,9.85286292,158.64,158.6,15.7627]
[1724729552258,15.82275863,158.67,158.6,15.7627]
[1724729552259,9.85286292,158.66,158.6,15.7627]
[1724729552564,9.85286292,158.66,158.61,6.3047]
[1724729556569,9.85286292,158.66,158.61,5.8047]
[1724729556870,9.85286292,158.66,158.62,1.26073225]
[1724729557768,9.85286292,158.66,158.62,6.3043]
[1724729563670,15.2187,158.67,158.63,6.3039]
[1724729563978,15.2187,158.67,158.63,51.3039]
[1724729564177,15.2187,158.67,158.6,15.7627]
[1724729564501,9.85286292,158.66,158.61,6.3044]
[1724729564945,9.85286292,158.66,158.62,6.304]
[1724729566569,15.2187,158.67,158.62,15.76]
[1724729566760,15.2187,158.67,158.63,7.56448559]
[1724729567652,15.2187,158.67,158.63,6.3039]
[1724729569264,9.85286292,158.66,158.62,15.76]
[1724729569973,9.85286292,158.66,158.62,22.0641]
[1724729572671,15.2187,158.67,158.62,22.0641]
[1724729573172,15.82275863,158.67,158.62,22.0641]
[1724729573364,15.2187,158.67,158.62,22.0641]
[1724729573559,15.2187,158.67,158.63,45.0]
[1724729575272,15.2187,158.67,158.63,51.3039]
[1724729575457,15.2187,158.67,158.64,6.3035]
[1724729575665,6.59689128,158.7,158.66,6.3027]
[1724729575849,15.4234,158.71,158.66,6.3027]
[1724729576776,15.4234,158.71,158.66,7.56302324]
[1724729577074,15.4234,158.71,158.66,6.3027]
[1724729577275,10.45692155,158.7,158.65,51.3031]
[1724729577972,10.45692155,158.7,158.65,45.0]
[1724729579170,9.85286292,158.68,158.64,15.758]
[1724729579371,9.85286292,158.66,158.64,15.758]
[1724729579876,9.85286292,158.66,158.6,22.0671]
[1724729579877,16.98655863,158.65,158.6,22.0671]
[1724729580082,9.85286292,158.64,158.6,22.0671]
[1724729581366,9.85286292,158.64,158.55,24.17806292]
[1724729581367,0.60405863,158.63,158.58,6.3057]
[1724729581564,9.85286292,158.64,158.58,6.3057]
[1724729581768,10.45692155,158.64,158.58,6.3057]
[1724729582272,10.45692155,158.64,158.59,6.3054]
[1724729585481,10.45692155,158.64,158.58,6.3059]
[1724729585662,9.85286292,158.62,158.58,6.3059]
[1724729588159,9.85286292,158.62,158.59,1.57958165]
[1724729588358,9.85286292,158.62,158.58,6.3059]
[1724729588563,9.85286292,158.64,158.58,6.3059]
[1724729588807,16.3825,158.65,158.6,6.3047]
[1724729593670,16.3825,158.65,158.6,15.762]
[1724729593864,16.3825,158.65,158.61,46.26067783]
[1724729594065,16.3825,158.65,158.61,46.26068529]
[1724729594776,16.3825,158.65,158.62,15.76]
[1724729594971,16.3825,158.65,158.61,45.0]
[1724729594972,15.3707,158.7,158.63,46.26050059]
[1724729595284,15.3707,158.7,158.66,6.3027]
[1724729595486,15.3707,158.7,158.67,1.26028983]
[1724729595786,15.3707,158.7,158.68,7.56206469]
[1724729595993,15.3707,158.7,158.69,45.0]
[1724729596488,15.3707,158.7,158.67,6.3023]
[1724729598095,0.822621,158.73,158.66,15.7561]
[1724729598263,0.822621,158.73,158.67,45.0]
[1724729598681,1.42667963,158.73,158.68,6.3019]
[1724729598882,9.85286292,158.72,158.69,45.0]
[1724729599092,9.85286292,158.72,158.67,51.3023]
[1724729599279,9.85286292,158.7,158.64,6.3035]
[1724729599592,25.22356292,158.68,158.64,6.3035]
[1724729600178,25.22356292,158.68,158.62,22.0643]
[1724729600179,9.85286292,158.66,158.62,22.0643]
[1724729600376,9.85286292,158.66,158.62,15.76]
[1724729601175,9.85286292,158.66,158.62,22.0642]
[1724729601600,9.85286292,158.66,158.63,7.56440984]
[1724729601779,25.22356292,158.68,158.64,51.3035]
[1724729602996,25.22356292,158.68,158.64,45.0]
[1724729603181,25.22356292,158.68,158.63,6.3039]
[1724729603382,25.82762155,158.68,158.63,6.3039]
[1724729603583,9.85286292,158.66,158.63,6.3039]
[1724729603777,9.85286292,158.66,158.62,15.76]
[1724729604579,9.85286292,158.66,158.62,22.0641]
[1724729608982,15.3707,158.68,158.63,45.0]
[1724729610709,15.3707,158.68,158.64,6.3034]
[1724729614619,15.97475863,158.68,158.64,6.3034]
[1724729615025,15.97475863,158.68,158.63,51.3039]
[1724729615203,15.3707,158.68,158.63,51.3039]
[1724729615715,9.85286292,158.67,158.63,6.3039]
[1724729615897,10.45692155,158.67,158.62,22.0643]
[1724729616218,10.45692155,158.67,158.62,15.76]
[1724729617502,9.85286292,158.67,158.62,15.76]
[1724729619015,9.85286292,158.67,158.62,22.0642]
[1724729619203,15.3707,158.68,158.63,46.2606144]
[1724729619514,25.22356292,158.68,158.63,51.3039]
[1724729620121,9.85286292,158.66,158.62,22.0643]
[1724729620995,9.85286292,158.66,158.62,15.76]
[1724729622616,0.60405863,158.65,158.62,15.76]
[1724729622799,15.85796292,158.64,158.59,22.0688]
[1724729622995,9.85286292,158.62,158.59,22.0688]
[1724729623214,9.85286292,158.6,158.57,6.3063]
[1724729623522,9.85286292,158.6,158.56,22.0729]
[1724729624318,9.85286292,158.58,158.56,22.0729]
[1724729625709,9.85286292,158.6,158.56,22.0729]
[1724729628038,9.85286292,158.6,158.56,15.7666]
[1724729629143,9.85286292,158.61,158.57,1.26120949]
[1724729631246,15.0012,158.62,158.58,1.26107925]
[1724729631415,15.0012,158.62,158.57,45.0]
[1724729632745,15.0012,158.62,158.58,6.3058]
[1724729634621,15.0012,158.62,158.6,6.3048]
[1724729634921,6.0051,158.64,158.61,45.0]
[1724729639332,15.85796292,158.64,158.61,45.0]
[1724729639532,16.46202155,158.64,158.59,6.3055]
[1724729639739,15.85796292,158.64,158.6,45.0]
[1724729640261,9.85286292,158.62,158.59,6.3055]
[1724729641054,6.0051,158.64,158.53,41.39116292]
[1724729641055,26.10616292,158.6,158.53,31.5383]
[1724729641371,26.10616292,158.6,158.5,14.2071]
[1724729641372,9.85286292,158.58,158.55,15.7678]
[1724729642551,9.85286292,158.58,158.55,22.0748]
[1724729644468,26.10616292,158.6,158.56,51.3066]
[1724729645747,26.10616292,158.6,158.55,15.7678]
[1724729645748,26.10616292,158.6,158.55,22.0748]
[1724729645945,0.60405863,158.59,158.55,22.0748]
[1724729646349,26.10616292,158.6,158.55,22.0748]
[1724729648061,16.2533,158.6,158.55,22.0748]
[1724729648261,26.10616292,158.6,158.55,22.0748]
[1724729648463,26.10616292,158.6,158.56,51.3064]
[1724729649667,16.2533,158.6,158.56,51.3064]
[1724729650451,16.2533,158.6,158.57,1.26107231]
[1724729650862,16.2533,158.6,158.56,45.0]
[1724729651559,16.2533,158.6,158.57,6.3063]
[1724729652168,16.85735863,158.6,158.57,6.3063]
[1724729652544,16.2533,158.6,158.57,6.3063]
[1724729654770,16.2533,158.6,158.56,45.0]
[1724729654957,9.85286292,158.57,158.53,6.3075]
[1724729655275,9.85286292,158.55,158.53,6.3075]
[1724729659254,9.85286292,158.55,158.52,15.7708]
[1724729659464,9.85286292,158.55,158.52,22.0789]
[1724729661563,9.85286292,158.57,158.53,6.3079]
[1724729663052,12.63668433,158.59,158.54,6.3074]
[1724729663251,6.0453,158.59,158.55,51.307]
[1724729664778,9.85286292,158.58,158.55,45.0]
[1724729664959,9.85286292,158.58,158.53,6.3077]
[1724729665277,10.45692155,158.58,158.53,6.3077]
[1724729666460,9.85286292,158.58,158.53,6.3077]
[1724729670389,15.89816292,158.59,158.54,1.26136203]
[1724729670600,15.89816292,158.59,158.55,1.26124398]
[1724729671302,15.89816292,158.59,158.54,51.3074]
[1724729672489,15.89816292,158.59,158.55,6.307]
[1724729672701,6.0453,158.59,158.55,6.307]
[1724729673914,6.0453,158.59,158.55,7.5682269]
[1724729675820,6.0453,158.59,158.55,1.2612269]
[1724729676319,6.0453,158.59,158.54,51.3075]
[1724729683253,9.85286292,158.58,158.54,45.0]
[1724729683409,9.85286292,158.56,158.52,22.0791]
[1724729683615,9.85286292,158.56,158.53,1.57998592]
[1724729683964,9.85286292,158.56,158.52,15.7708]
[1724729685129,9.85286292,158.54,158.51,6.3086]
[1724729685334,10.45692155,158.54,158.49,15.7737]
[1724729685538,10.45692155,158.54,158.5,7.88941264]
[1724729685736,9.85286292,158.54,158.51,1.58032057]
[1724729686049,9.85286292,158.54,158.5,6.3091]
[1724729686209,9.85286292,158.54,158.51,1.58029286]
[1724729686407,15.609,158.55,158.5,6.3091]
[1724729686710,15.609,158.55,158.51,1.58025869]
[1724729686913,15.609,158.55,158.5,6.3091]
[1724729687114,15.609,158.55,158.51,1.58025866]
[1724729687318,15.609,158.55,158.5,6.3091]
[1724729687552,15.609,158.55,158.51,1.58025866]
[1724729687744,15.609,158.55,158.5,6.3091]
[1724729687930,15.609,158.55,158.51,1.58025833]
[1724729688130,15.609,158.55,158.5,6.3091]
[1724729688334,15.609,158.55,158.51,1.58025866]
[1724729688633,15.609,158.55,158.5,6.3091]
[1724729689724,15.609,158.55,158.51,52.88880355]
[1724729689926,15.609,158.55,158.51,51.3086]
[1724729690125,15.609,158.55,158.52,1.26151813]
[1724729691238,15.609,158.55,158.51,51.3086]
[1724729692429,6.59488015,158.57,158.52,18.61201663]
[1724729692642,21.6543,158.59,158.53,52.88811372]
[1724729692822,29.85286292,158.58,158.53,51.3079]
[1724729693451,30.45692155,158.58,158.53,51.3079]
[1724729696067,20.60405863,158.58,158.54,6.3074]
[1724729696232,31.50716292,158.59,158.55,6.307]
[1724729696740,31.50716292,158.59,158.53,51.3075]
[1724729698362,31.50716292,158.59,158.54,1.58000273]
[1724729698658,31.50716292,158.59,158.53,51.3075]
[1724729698850,31.50716292,158.59,158.54,1.58000273]
[1724729699052,31.50716292,158.59,158.53,51.3075]
[1724729699254,31.50716292,158.59,158.54,1.57999453]
[1724729699454,21.6543,158.59,158.54,1.26135718]
[1724729699666,15.609,158.59,158.55,2.84110839]
[1724729699874,15.609,158.59,158.56,23.65268616]
[1724729700039,15.609,158.59,158.56,22.0727]
[1724729700437,15.609,158.59,158.57,1.57971615]
[1724729700677,15.609,158.59,158.56,22.0727]
[1724729700842,15.109,158.59,158.56,22.0727]
[1724729701042,15.109,158.59,158.57,1.57971633]
[1724729701239,15.109,158.59,158.56,15.7661]
[1724729705345,15.109,158.59,158.56,22.0728]
[1724729705668,15.109,158.59,158.57,7.567488]
[1724729707380,15.109,158.59,158.57,6.3063]
[1724729709048,15.109,158.59,158.57,7.56741447]
[1724729709976,15.109,158.59,158.57,7.56741456]
[1724729710272,15.109,158.59,158.57,6.3063]
[1724729710478,9.85286292,158.62,158.57,6.3063]
[1724729710647,9.85286292,158.62,158.58,45.0]
[1724729711855,23.19725863,158.63,158.58,45.0]
[1724729712066,29.85286292,158.62,158.58,45.0]
[1724729712265,30.45692155,158.62,158.58,45.0]
[1724729712976,30.45692155,158.62,158.58,51.3057]
[1724729714080,32.44606292,158.63,158.58,51.3057]
[1724729714289,21.5883,158.67,158.63,6.3038]
[1724729715558,10.45692155,158.66,158.59,15.7638]
[1724729715760,9.85286292,158.64,158.6,6.3051]
[1724729715975,0.60405863,158.63,158.6,6.3051]
[1724729716494,0.60405863,158.63,158.59,15.7638]
[1724729716781,0.60405863,158.63,158.59,22.0693]
[1724729720974,10.45692155,158.64,158.59,22.0693]
[1724729721294,9.85286292,158.64,158.6,6.3051]
[1724729721518,9.85286292,158.66,158.62,6.3043]
[1724729721685,29.85286292,158.66,158.62,6.3043]
[1724729726083,20.0,158.66,158.63,6.3039]
[1724729734610,31.44116292,158.67,158.63,6.3039]
[1724729734806,31.44116292,158.67,158.62,6.3042]
[1724729735011,0.60405863,158.66,158.62,6.3042]
[1724729740729,32.04522155,158.67,158.62,6.3042]
[1724729743249,9.85286292,158.63,158.59,6.3052]
[1724729745626,6.59684388,158.65,158.59,1.26098852]
[1724729745806,9.85286292,158.66,158.62,6.3043]
[1724729746731,21.5883,158.67,158.62,6.3043]
[1724729747047,20.0,158.66,158.62,6.3043]
[1724729747331,20.0,158.66,158.63,45.0]
[1724729749920,20.0,158.66,158.62,6.3043]
[1724729756228,15.2608,158.67,158.64,6.3035]
[1724729756924,0.5900937,158.69,158.65,46.26050182]
[1724729757839,0.5900937,158.69,158.67,6.3023]
[1724729760436,0.5900937,158.69,158.65,51.3028]
[1724729764031,0.5900937,158.69,158.66,6.3027]
[1724729765856,0.5900937,158.69,158.66,7.56309433]
[1724729768133,0.5900937,158.69,158.66,6.3027]
[1724729768453,0.5900937,158.69,158.66,7.56307448]
[1724729769957,0.5900937,158.69,158.67,6.3023]
[1724729774652,0.5900937,158.69,158.68,1.26030314]
[1724729775152,0.5900937,158.69,158.68,52.56220314]
[1724729775537,0.5900937,158.69,158.68,51.3019]
[1724729780255,0.5900937,158.69,158.68,61.15476292]
[1724729780477,0.5900937,158.69,158.68,62.41498684]
[1724729780666,0.5900937,158.69,158.68,82.41498684]
[1724729781166,0.5900937,158.69,158.68,83.99334372]
[1724729782139,0.5900937,158.69,158.68,72.88025688]
[1724729782341,0.5900937,158.69,158.68,82.7331198]
[1724729783955,0.5900937,158.69,158.68,82.73286617]
[1724729784847,0.5900937,158.69,158.68,82.73283347]
[1724729785654,0.5900937,158.69,158.68,83.99261701]
[1724729785870,0.5900937,158.69,158.68,89.96151921]
[1724729786241,0.5900937,158.69,158.68,90.27977352]
[1724729786654,0.5900937,158.69,158.68,91.53946832]
[1724729787360,6.0509,158.79,158.75,15.7477]
[1724729787539,6.0509,158.79,158.76,45.0]
[1724729787738,6.0509,158.79,158.76,51.2984]
[1724729789959,16.274,158.8,158.76,51.2984]
[1724729790356,16.274,158.8,158.75,22.0469]
[1724729790552,9.85286292,158.78,158.75,22.0469]
[1724729793063,0.60405863,158.79,158.75,22.0469]
[1724729793363,9.85286292,158.79,158.75,22.0469]
[1724729793562,10.45692155,158.79,158.75,22.0469]
[1724729793858,26.73092155,158.8,158.75,22.0469]
[1724729794066,16.274,158.8,158.76,46.25971939]
[1724729794265,16.274,158.8,158.76,45.0]
[1724729794569,26.12686292,158.8,158.75,15.7477]
[1724729794762,9.85286292,158.76,158.72,15.7508]
[1724729794963,0.60405863,158.75,158.72,15.7508]
[1724729795943,9.85286292,158.74,158.63,15.09]
[1724729796143,16.25065863,158.75,158.61,31.5223]
[1724729796144,9.85286292,158.7,158.62,1.57840124]
[1724729796451,9.85286292,158.7,158.66,6.3027]
[1724729796850,9.85286292,158.7,158.67,6.3023]
[1724729798748,9.85286292,158.71,158.67,6.3023]
[1724729802776,9.85286292,158.71,158.66,6.3027]
[1724729802967,0.60405863,158.7,158.66,6.3027]
[1724729803157,0.60405863,158.7,158.67,6.3023]
[1724729803359,10.45692155,158.71,158.67,6.3023]
[1724729803563,0.60405863,158.7,158.67,6.3023]
[1724729804550,0.60405863,158.7,158.65,6.3027]
[1724729804761,0.60405863,158.7,158.66,51.3027]
[1724729805274,25.49946292,158.69,158.65,6.3031]
[1724729806764,15.6466,158.69,158.66,6.3027]
[1724729806965,15.6466,158.69,158.68,15.7549]
[1724729807168,15.6466,158.69,158.68,22.0568]
[1724729807665,35.6466,158.73,158.69,6.3014]
[1724729809375,36.25065863,158.73,158.68,15.7549]
[1724729809670,9.85286292,158.72,158.68,15.7549]
[1724729810569,0.60405863,158.71,158.68,15.7549]
[1724729813472,9.85286292,158.7,158.66,6.3027]
[1724729813673,9.85286292,158.7,158.67,6.3022]
[1724729815675,9.85286292,158.71,158.67,6.3022]
[1724729815874,45.49946292,158.73,158.68,6.3018]
[1724729817984,0.60405863,158.72,158.68,6.3018]
[1724729820079,9.85286292,158.72,158.69,6.3014]
[1724729821687,25.39306292,158.77,158.71,6.3004]
[1724729821979,0.60405863,158.76,158.7,45.0]
[1724729822180,25.99712155,158.77,158.7,45.0]
[1724729822373,0.60405863,158.76,158.7,45.0]
[1724729822576,9.85286292,158.75,158.7,45.0]
[1724729822783,9.85286292,158.75,158.71,6.3007]
[1724729824270,9.85286292,158.75,158.72,6.3003]
[1724729825395,15.5402,158.77,158.73,6.2999]
[1724729825599,25.39306292,158.77,158.71,15.7512]
[1724729825806,15.5402,158.77,158.75,6.299]
[1724729825975,15.5402,158.77,158.74,6.2995]
[1724729830572,15.5402,158.77,158.75,6.299]
[1724729830778,9.85286292,158.79,158.76,45.0]
[1724729831912,9.85286292,158.79,158.76,51.2987]
[1724729832199,16.14425863,158.81,158.76,51.2987]
[1724729832414,20.0,158.8,158.76,51.2987]
[1724729832619,20.60405863,158.8,158.76,51.2987]
[1724729836693,25.99712155,158.81,158.76,51.2987]
[1724729836892,15.5402,158.81,158.78,6.2979]
[1724729837084,15.5402,158.81,158.79,51.2975]
[1724729837290,16.3077,158.83,158.8,6.2972]
[1724729837487,10.0,158.83,158.82,6.2964]
[1724729837692,10.0,158.83,158.82,51.2964]
[1724729838782,10.0,158.83,158.82,67.0374]
[1724729839897,10.0,158.83,158.82,15.741]
[1724729841615,10.0,158.83,158.82,22.0374]
[1724729841780,10.0,158.83,158.82,67.0374]
[1724729844986,10.0,158.83,158.82,15.741]
[1724729845485,10.0,158.83,158.79,15.7438]
[1724729845686,9.85286292,158.8,158.73,31.4991]
[1724729845886,10.0,158.83,158.74,6.2992]
[1724729845887,9.85286292,158.78,158.74,6.2992]
[1724729846717,0.60405863,158.77,158.73,22.0497]
[1724729846898,0.60405863,158.77,158.67,6.1384]
[1724729846899,9.85286292,158.76,158.71,6.3004]
[1724729847104,9.85286292,158.74,158.71,6.3004]
[1724729848015,9.85286292,158.76,158.72,6.3003]
[1724729848521,9.85286292,158.78,158.73,6.2999]
[1724729850006,9.85286292,158.78,158.74,6.2994]
[1724729852412,9.85286292,158.78,158.75,1.25967209]
[1724729852718,9.85286292,158.78,158.75,6.2991]
[1724729853013,15.4691,158.79,158.76,45.0]
[1724729853215,9.85286292,158.78,158.74,6.2993]
[1724729853795,9.85286292,158.78,158.74,7.55902837]
[1724729854515,15.4691,158.79,158.74,1.25972837]
[1724729854809,15.4691,158.79,158.75,6.2991]
[1724729858701,15.4691,158.79,158.76,6.2987]
[1724729860097,15.4691,158.79,158.75,6.2991]
[1724729861306,16.07315863,158.79,158.75,6.2991]
[1724729864710,16.07315863,158.79,158.74,22.0477]
[1724729865027,16.07315863,158.79,158.75,51.2992]
[1724729865615,9.85286292,158.78,158.75,45.0]
[1724729865814,9.85286292,158.78,158.74,22.0476]
[1724729866426,9.85286292,158.78,158.75,6.2991]
[1724729868712,15.4691,158.79,158.77,15.746]